bitfinex/quotes_BTCUSD_20241102
["timestamp","ask_amount","ask_price","bid_price","bid_amount"]
[1730572717520,0.607326,69428.0,69427.0,0.26497079]
[1730572722298,0.607326,69428.0,69427.0,0.35080146]
[1730572723576,0.607326,69428.0,69427.0,0.35105995]
[1730572725333,0.607326,69428.0,69427.0,0.26513844]
[1730572727741,0.62080537,69428.0,69427.0,0.26078388]
[1730572727952,0.607326,69428.0,69427.0,0.26078388]
[1730572728164,0.62080537,69428.0,69427.0,0.26080558]
[1730572728845,0.607326,69428.0,69427.0,0.26080558]
[1730572729550,0.62080483,69428.0,69427.0,0.26080558]
[1730572729772,0.607326,69428.0,69427.0,0.3467601]
[1730572731590,0.607326,69428.0,69427.0,0.26080558]
[1730572732669,0.607326,69428.0,69427.0,0.34682622]
[1730572732999,0.607326,69428.0,69427.0,0.26080558]
[1730572733167,0.62080559,69428.0,69427.0,0.26080558]
[1730572734591,0.607326,69428.0,69427.0,0.26080558]
[1730572735495,0.607326,69428.0,69427.0,0.32531226]
[1730572735666,0.62080686,69428.0,69427.0,0.32531226]
[1730572736227,0.607326,69428.0,69427.0,0.32531226]
[1730572736879,0.62080766,69428.0,69427.0,0.32531226]
[1730572737111,0.62080766,69428.0,69427.0,0.32540228]
[1730572737528,0.61480766,69428.0,69427.0,0.16666274]
[1730572737743,0.61480766,69428.0,69427.0,0.06666274]
[1730572738566,0.61480766,69428.0,69427.0,0.00215906]
[1730572739533,0.601326,69428.0,69427.0,0.00215906]
[1730572739538,0.61480718,69428.0,69427.0,0.00215906]
[1730572740239,0.61480718,69428.0,69427.0,0.10215906]
[1730572741472,0.61562818,69428.0,69427.0,0.00215906]
[1730572742323,0.61562818,69428.0,69427.0,0.10215906]
[1730572742877,0.61562818,69428.0,69427.0,0.16666274]
[1730572744789,0.61562818,69428.0,69427.0,0.10215906]
[1730572745640,0.61563378,69428.0,69427.0,0.16665373]
[1730572747375,0.61563378,69428.0,69427.0,0.17104644]
[1730572747588,0.61563378,69428.0,69427.0,0.26089416]
[1730572747888,0.61563378,69428.0,69427.0,0.06666252]
[1730572749278,0.61563378,69428.0,69427.0,0.06666603]
[1730572749689,0.61563378,69428.0,69427.0,0.32542305]
[1730572751127,0.61595774,69428.0,69427.0,0.00215906]
[1730572751330,0.61595774,69428.0,69427.0,0.04517304]
[1730572751703,0.61595774,69428.0,69427.0,0.00215906]
[1730572752108,0.63753943,69428.0,69427.0,0.00215906]
[1730572752863,0.63753525,69428.0,69427.0,0.00215906]
[1730572753430,0.63753525,69428.0,69427.0,0.00380106]
[1730572760236,0.61595722,69428.0,69427.0,0.00380106]
[1730572760448,0.6375271,69428.0,69427.0,0.00380106]
[1730572761691,0.61595722,69428.0,69427.0,0.00380106]
[1730572762006,0.63752724,69428.0,69427.0,0.00380106]
[1730572762419,0.61595722,69428.0,69427.0,0.00380106]
[1730572763384,0.60247096,69428.0,69427.0,0.00380106]
[1730572763698,0.61595205,69428.0,69427.0,0.00380106]
[1730572763931,0.63752183,69428.0,69427.0,0.00380106]
[1730572764008,0.61595206,69428.0,69427.0,0.00380106]
[1730572764158,0.63752193,69428.0,69427.0,0.00380106]
[1730572770466,0.60247096,69428.0,69427.0,0.00380106]
[1730572770773,0.75230772,69428.0,69427.0,0.00380106]
[1730572770902,0.75430772,69428.0,69427.0,0.00380106]
[1730572771131,0.75930772,69428.0,69427.0,0.00380106]
[1730572771821,0.75430772,69428.0,69427.0,0.00380106]
[1730572772026,0.75930772,69428.0,69427.0,0.00380106]
[1730572773317,0.89776297,69428.0,69427.0,0.00380106]
[1730572774053,0.86271959,69428.0,69427.0,0.00380106]
[1730572774343,0.89775462,69428.0,69427.0,0.00380106]
[1730572774661,0.8977529,69428.0,69427.0,0.00380106]
[1730572774665,0.8957529,69428.0,69427.0,0.00380106]
[1730572775029,0.8907529,69428.0,69427.0,0.00380106]
[1730572775227,0.8957529,69428.0,69427.0,0.00380106]
[1730572776527,0.8907529,69428.0,69427.0,0.00380106]
[1730572776732,0.8957529,69428.0,69427.0,0.00380106]
[1730572779759,0.8907529,69428.0,69427.0,0.00380106]
[1730572779978,0.8957529,69428.0,69427.0,0.00380106]
[1730572780606,0.89576127,69428.0,69427.0,0.00380106]
[1730572782122,0.89076127,69428.0,69427.0,0.00380106]
[1730572782295,0.78596789,69428.0,69427.0,0.00380106]
[1730572784965,0.75092621,69428.0,69427.0,0.00380106]
[1730572785497,0.78597257,69428.0,69427.0,0.00380106]
[1730572786469,0.78097257,69428.0,69427.0,0.00380106]
[1730572786691,0.78597257,69428.0,69427.0,0.00380106]
[1730572788816,0.78597788,69428.0,69427.0,0.00380106]
[1730572789759,0.64252263,69428.0,69427.0,0.00380106]
[1730572792294,0.60747096,69428.0,69427.0,0.00380106]
[1730572792529,0.64252965,69428.0,69427.0,0.00380106]
[1730572793905,0.63752965,69428.0,69427.0,0.00380106]
[1730572794129,0.64252965,69428.0,69427.0,0.00380106]
[1730572795631,0.55972965,69428.0,69427.0,0.00380106]
[1730572796202,0.42807096,69428.0,69427.0,0.00380106]
[1730572796380,0.46313475,69428.0,69427.0,0.00380106]
[1730572796827,0.42807096,69428.0,69427.0,0.00380106]
[1730572796832,0.44155553,69428.0,69427.0,0.00380106]
[1730572797256,0.44155553,69428.0,69427.0,0.21189444]
[1730572797453,0.44155553,69428.0,69427.0,0.25496022]
[1730572799318,0.42807096,69428.0,69427.0,0.25496022]
[1730572800182,0.42807096,69428.0,69427.0,0.21189444]
[1730572800707,0.427747,69428.0,69427.0,0.37082241]
[1730572801396,0.42807096,69428.0,69427.0,0.47081898]
[1730572801713,0.427747,69428.0,69427.0,0.47081898]
[1730572802155,0.427747,69428.0,69427.0,0.55692413]
[1730572802351,0.427747,69428.0,69427.0,0.60927423]
[1730572802551,0.427747,69428.0,69427.0,0.69533444]
[1730572802971,0.427747,69428.0,69427.0,0.69127423]
[1730572803375,0.427747,69428.0,69427.0,0.79890566]
[1730572803578,0.42807096,69428.0,69427.0,0.69127423]
[1730572804405,0.427747,69428.0,69427.0,0.77730994]
[1730572804581,0.42807096,69428.0,69427.0,0.77730994]
[1730572805050,0.42807096,69428.0,69427.0,0.69127423]
[1730572805219,0.42807096,69428.0,69427.0,0.77712697]
[1730572805672,0.427747,69428.0,69427.0,0.69111052]
[1730572805926,0.42807096,69428.0,69427.0,0.69111052]
[1730572806794,0.42807096,69428.0,69427.0,0.58131714]
[1730572807050,0.42807096,69428.0,69427.0,0.16829407]
[1730572807426,0.42807096,69428.0,69427.0,0.10380106]
[1730572809727,0.427747,69428.0,69427.0,0.10380106]
[1730572809942,0.42807096,69428.0,69427.0,0.10380106]
[1730572811207,0.42807096,69428.0,69427.0,0.1467789]
[1730572811741,0.427747,69428.0,69427.0,0.1467789]
[1730572811948,0.42807096,69428.0,69427.0,0.10380106]
[1730572812147,0.42807096,69428.0,69427.0,0.14677421]
[1730572814511,0.42807096,69428.0,69427.0,0.10380106]
[1730572816291,0.42807096,69428.0,69427.0,0.00380106]
[1730572816491,0.427747,69428.0,69427.0,0.00380106]
[1730572816686,0.42807096,69428.0,69427.0,0.00380106]
[1730572821214,0.44153691,69428.0,69427.0,0.00380106]
[1730572821641,0.42807096,69428.0,69427.0,0.00380106]
[1730572822052,0.44153818,69428.0,69427.0,0.00380106]
[1730572822652,0.44153818,69428.0,69427.0,0.001642]
[1730572823592,0.53643818,69428.0,69427.0,0.001642]
[1730572824006,0.53644428,69428.0,69427.0,0.001642]
[1730572826033,0.53644886,69428.0,69427.0,0.001642]
[1730572833111,0.52297096,69428.0,69427.0,0.001642]
[1730572833116,0.53644685,69428.0,69427.0,0.001642]
[1730572836836,0.64120842,69428.0,69427.0,0.001642]
[1730572837149,0.64320842,69428.0,69427.0,0.001642]
[1730572838579,0.90148808,69428.0,69427.0,0.001642]
[1730572838787,0.80066508,69428.0,69427.0,0.001642]
[1730572838927,0.90148808,69428.0,69427.0,0.001642]
[1730572839352,1.01128146,69428.0,69427.0,0.001642]
[1730572839746,1.16278146,69428.0,69427.0,0.001642]
[1730572840506,1.01128437,69428.0,69427.0,0.001642]
[1730572840783,0.90149099,69428.0,69427.0,0.001642]
[1730572844147,0.90144307,69428.0,69427.0,0.001642]
[1730572847333,0.9238643,69428.0,69427.0,0.001642]
[1730572847535,0.90144307,69428.0,69427.0,0.001642]
[1730572847709,0.90142992,69428.0,69427.0,0.001642]
[1730572848161,0.90142988,69428.0,69427.0,0.001642]
[1730572848331,0.92384933,69428.0,69427.0,0.001642]
[1730572848752,0.90142988,69428.0,69427.0,0.001642]
[1730572849245,0.92384914,69428.0,69427.0,0.001642]
[1730572851652,0.92384144,69428.0,69427.0,0.001642]
[1730572852208,0.92384172,69428.0,69427.0,0.001642]
[1730572853949,0.57194569,69428.0,69427.0,0.001642]
[1730572854157,0.56294226,69428.0,69427.0,0.001642]
[1730572854679,0.55794226,69428.0,69427.0,0.001642]
[1730572854882,0.56294226,69428.0,69427.0,0.001642]
[1730572855126,0.55794226,69428.0,69427.0,0.001642]
[1730572855306,0.56294226,69428.0,69427.0,0.001642]
[1730572855540,0.55794226,69428.0,69427.0,0.001642]
[1730572855759,0.70639751,69428.0,69427.0,0.001642]
[1730572857476,0.70139751,69428.0,69427.0,0.001642]
[1730572857804,0.70639751,69428.0,69427.0,0.001642]
[1730572858655,0.7064085,69428.0,69427.0,0.001642]
[1730572858867,0.69295377,69428.0,69427.0,0.001642]
[1730572859218,0.69295386,69428.0,69427.0,0.001642]
[1730572859351,0.70640864,69428.0,69427.0,0.001642]
[1730572861577,0.70641699,69428.0,69427.0,0.001642]
[1730572862407,0.71541905,69428.0,69427.0,0.001642]
[1730572863195,0.79321905,69428.0,69427.0,0.001642]
[1730572866025,0.79324193,69428.0,69427.0,0.001642]
[1730572870612,0.79524193,69428.0,69427.0,0.001642]
[1730572870844,0.89606493,69428.0,69427.0,0.001642]
[1730572871293,1.00585831,69428.0,69427.0,0.001642]
[1730572871733,0.85204921,69428.0,69427.0,0.001642]
[1730572871953,0.89608252,69428.0,69427.0,0.001642]
[1730572872729,0.89608452,69428.0,69427.0,0.001642]
[1730572876130,0.79326152,69428.0,69427.0,0.001642]
[1730572876331,0.71546152,69428.0,69427.0,0.001642]
[1730572877982,0.73792124,69428.0,69427.0,0.001642]
[1730572878898,0.72892609,69428.0,69427.0,0.001642]
[1730572879142,0.73792847,69428.0,69427.0,0.001642]
[1730572879532,0.71546757,69428.0,69427.0,0.001642]
[1730572879537,0.73792846,69428.0,69427.0,0.001642]
[1730572881323,0.71546757,69428.0,69427.0,0.001642]
[1730572882797,0.62056757,69428.0,69427.0,0.001642]
[1730572884195,0.61556757,69428.0,69427.0,0.001642]
[1730572884417,0.47711232,69428.0,69427.0,0.001642]
[1730572885308,0.46810994,69428.0,69427.0,0.001642]
[1730572886507,0.46811974,69428.0,69427.0,0.001642]
[1730572887854,0.47712095,69428.0,69427.0,0.001642]
[1730572889258,0.46811974,69428.0,69427.0,0.001642]
[1730572889497,0.46311974,69428.0,69427.0,0.001642]
[1730572889645,0.47712121,69428.0,69427.0,0.001642]
[1730572889898,0.47711264,69428.0,69427.0,0.001642]
[1730572890589,0.47711276,69428.0,69427.0,0.001642]
[1730572893915,0.47710855,69428.0,69427.0,0.001642]
[1730572895069,0.47210855,69428.0,69427.0,0.001642]
[1730572895270,0.47710855,69428.0,69427.0,0.001642]
[1730572895911,0.57390855,69428.0,69427.0,0.001642]
[1730572897442,0.57390462,69428.0,69427.0,0.001642]
[1730572901091,0.5604299,69428.0,69427.0,0.001642]
[1730572901285,0.52987096,69428.0,69427.0,0.001642]
[1730572901523,0.57390326,69428.0,69427.0,0.001642]
[1730572901958,0.56890326,69428.0,69427.0,0.001642]
[1730572902189,0.57390326,69428.0,69427.0,0.001642]
[1730572904776,0.55991865,69428.0,69427.0,0.001642]
[1730572904854,0.57392021,69428.0,69427.0,0.001642]
[1730572905961,0.78827546,69428.0,69427.0,0.001642]
[1730572909026,0.78327546,69428.0,69427.0,0.001642]
[1730572909250,0.78827546,69428.0,69427.0,0.001642]
[1730572910198,0.78830312,69428.0,69427.0,0.001642]
[1730572912328,0.78830939,69428.0,69427.0,0.001642]
[1730572913914,0.78730939,69428.0,69427.0,0.001642]
[1730572914450,0.78230939,69428.0,69427.0,0.001642]
[1730572914649,0.78730939,69428.0,69427.0,0.001642]
[1730572918324,0.78230939,69428.0,69427.0,0.001642]
[1730572918535,0.78730939,69428.0,69427.0,0.001642]
[1730572921874,0.78733129,69428.0,69427.0,0.001642]
[1730572925565,0.78233129,69428.0,69427.0,0.001642]
[1730572925670,0.78733129,69428.0,69427.0,0.001642]
[1730572926282,0.73822621,69428.0,69427.0,0.001642]
[1730572926292,0.78733129,69428.0,69427.0,0.001642]
[1730572928994,0.70643129,69428.0,69427.0,0.001642]
[1730572929296,0.71143129,69428.0,69427.0,0.001642]
[1730572932990,0.66732621,69428.0,69427.0,0.001642]
[1730572933096,0.7114295,69428.0,69427.0,0.001642]
[1730572935099,0.70242805,69428.0,69427.0,0.001642]
[1730572936330,0.69742805,69428.0,69427.0,0.001642]
[1730572936536,0.70242805,69428.0,69427.0,0.001642]
[1730572936953,0.69742805,69428.0,69427.0,0.001642]
[1730572937162,0.70242805,69428.0,69427.0,0.001642]
[1730572937583,0.69742805,69428.0,69427.0,0.001642]
[1730572937763,0.70242805,69428.0,69427.0,0.001642]
[1730572937976,0.69742805,69428.0,69427.0,0.001642]
[1730572938183,0.70242805,69428.0,69427.0,0.001642]
[1730572938399,0.4621728,69428.0,69427.0,0.001642]
[1730572942184,0.47117393,69428.0,69427.0,0.001642]
[1730572943039,0.47084997,69428.0,69427.0,0.001642]
[1730572943117,0.47617393,69428.0,69427.0,0.001642]
[1730572943684,0.47115961,69428.0,69427.0,0.001642]
[1730572945311,0.47115961,69428.0,69427.0,0.04475675]
[1730572945312,0.46215848,69428.0,69427.0,0.04475675]
[1730572945739,0.46215848,69428.0,69427.0,0.001642]
[1730572945952,0.46215848,69428.0,69427.0,0.22547757]
[1730572946159,0.46215848,69428.0,69427.0,0.32547757]
[1730572946752,0.44056616,69428.0,69427.0,0.32547757]
[1730572947449,0.44056616,69428.0,69427.0,0.06633601]
[1730572948505,0.44056616,69428.0,69427.0,0.001642]
[1730572949575,0.44056616,69428.0,69427.0,0.11143538]
[1730572949956,0.44056616,69428.0,69427.0,0.21143538]
[1730572950143,0.44056616,69428.0,69427.0,0.27047471]
[1730572950400,0.44055391,69428.0,69427.0,0.33509111]
[1730572950995,0.44055391,69428.0,69427.0,0.11143538]
[1730572952254,0.44055391,69428.0,69427.0,0.17605178]
[1730572952494,0.44055391,69428.0,69427.0,0.1760394]
[1730572952685,0.44055391,69428.0,69427.0,0.11143538]
[1730572953087,0.53285391,69428.0,69427.0,0.001642]
[1730572953433,0.53285391,69428.0,69427.0,0.04471384]
[1730572954300,0.53284942,69428.0,69427.0,0.04471384]
[1730572954406,0.53284942,69428.0,69427.0,0.001642]
[1730572955214,0.51937096,69428.0,69427.0,0.001642]
[1730572955409,0.53284918,69428.0,69427.0,0.001642]
[1730572957578,0.53284946,69428.0,69427.0,0.001642]
[1730572958839,0.5325255,69428.0,69427.0,0.001642]
[1730572959069,0.55441587,69428.0,69427.0,0.001642]
[1730572961333,0.55442115,69428.0,69427.0,0.001642]
[1730572964729,0.51937096,69428.0,69427.0,0.001642]
[1730572965271,0.55442793,69428.0,69427.0,0.001642]
[1730572968450,0.53285795,69428.0,69427.0,0.001642]
[1730572968731,0.55443713,69428.0,69427.0,0.001642]
[1730572971638,0.63363713,69428.0,69427.0,0.001642]
[1730572972086,0.64263834,69428.0,69427.0,0.001642]
[1730572972318,0.64264194,69428.0,69427.0,0.001642]
[1730572975864,0.59857096,69428.0,69427.0,0.001642]
[1730572976207,0.64263817,69428.0,69427.0,0.001642]
[1730572977079,0.78109342,69428.0,69427.0,0.001642]
[1730572979776,0.78109118,69428.0,69427.0,0.001642]
[1730572982204,0.78109446,69428.0,69427.0,0.001642]
[1730572986117,0.75861129,69428.0,69427.0,0.001642]
[1730572986198,0.7811032,69428.0,69427.0,0.001642]
[1730572986635,0.73702621,69428.0,69427.0,0.001642]
[1730572990380,0.78111323,69428.0,69427.0,0.001642]
[1730572990655,0.86841084,69428.0,69427.0,0.001642]
[1730572990808,0.89090652,69428.0,69427.0,0.001642]
[1730572991012,0.84881959,69428.0,69427.0,0.001642]
[1730572991349,0.84681959,69428.0,69427.0,0.001642]
[1730572991419,0.89090661,69428.0,69427.0,0.001642]
[1730572992656,0.89590661,69428.0,69427.0,0.001642]
[1730572992863,0.9233975,69428.0,69427.0,0.001642]
[1730572993109,1.00372961,69428.0,69427.0,0.001642]
[1730572993916,1.00172961,69428.0,69427.0,0.001642]
[1730572994118,0.90090661,69428.0,69427.0,0.001642]
[1730572994323,0.79111323,69428.0,69427.0,0.001642]
[1730572994728,0.80859433,69428.0,69427.0,0.001642]
[1730572994929,0.47115798,69428.0,69427.0,0.001642]
[1730572995179,0.46183278,69428.0,69427.0,0.001642]
[1730572995389,0.46215674,69428.0,69427.0,0.001642]
[1730572995643,0.46215674,69428.0,69427.0,0.04473317]
[1730572995847,0.44056549,69428.0,69427.0,0.04473317]
[1730572997300,0.44056549,69428.0,69427.0,0.001642]
[1730572997895,0.44055362,69428.0,69427.0,0.06627876]
[1730572998521,0.44055362,69428.0,69427.0,0.22522703]
[1730572998936,0.44055362,69428.0,69427.0,0.16062754]
[1730572999152,0.44055362,69428.0,69427.0,0.16504094]
[1730572999785,0.44055362,69428.0,69427.0,0.16061582]
[1730573000726,0.44055362,69428.0,69427.0,0.22521107]
[1730573000727,0.44022966,69428.0,69427.0,0.22521107]
[1730573000925,0.44022966,69428.0,69427.0,0.16061582]
[1730573001567,0.4405478,69428.0,69427.0,0.16061582]
[1730573001819,0.44022384,69428.0,69427.0,0.16061582]
[1730573001824,0.426747,69428.0,69427.0,0.16061582]
[1730573002017,0.42707096,69428.0,69427.0,0.16494035]
[1730573002424,0.426747,69428.0,69427.0,0.16494035]
[1730573002631,0.42707096,69428.0,69427.0,0.16494035]
[1730573003718,0.42707096,69428.0,69427.0,0.16490716]
[1730573005225,0.426747,69428.0,69427.0,0.16490716]
[1730573005426,0.42707096,69428.0,69427.0,0.16490716]
[1730573005662,0.42707096,69428.0,69427.0,0.2294863]
[1730573006520,0.426747,69428.0,69427.0,0.2294863]
[1730573006981,0.426747,69428.0,69427.0,0.16490716]
[1730573007419,0.426747,69428.0,69427.0,0.27254949]
[1730573007620,0.426747,69428.0,69427.0,0.37034949]
[1730573007833,0.426747,69428.0,69427.0,0.26270716]
[1730573008276,0.426747,69428.0,69427.0,0.10376653]
[1730573008476,0.426747,69428.0,69427.0,0.26263605]
[1730573008719,0.426747,69428.0,69427.0,0.37021589]
[1730573010756,0.42707096,69428.0,69427.0,0.37021589]
[1730573011018,0.42707096,69428.0,69427.0,0.26263605]
[1730573012124,0.426747,69428.0,69427.0,0.37021589]
[1730573012339,0.426747,69428.0,69427.0,0.26263605]
[1730573014544,0.426747,69428.0,69427.0,0.34866413]
[1730573014974,0.426747,69428.0,69427.0,0.26263605]
[1730573017821,0.42707096,69428.0,69427.0,0.26263605]
[1730573018022,0.426747,69428.0,69427.0,0.26263605]
[1730573018502,0.426747,69428.0,69427.0,0.34864505]
[1730573020153,0.426747,69428.0,69427.0,0.25084505]
[1730573020400,0.426747,69428.0,69427.0,0.00596653]
[1730573020604,0.426747,69428.0,69427.0,0.09198992]
[1730573020816,0.426747,69428.0,69427.0,0.25076357]
[1730573023010,0.42707096,69428.0,69427.0,0.25076357]
[1730573023344,0.52167096,69428.0,69427.0,0.25076357]
[1730573023734,0.52167096,69428.0,69427.0,0.16474018]
[1730573023743,0.521347,69428.0,69427.0,0.22925058]
[1730573023956,0.52167096,69428.0,69427.0,0.22925058]
[1730573025936,0.42707096,69428.0,69427.0,0.22925058]
[1730573026694,0.42707096,69428.0,69427.0,0.16473322]
[1730573027216,0.426747,69428.0,69427.0,0.16473322]
[1730573027430,0.42707096,69428.0,69427.0,0.16473322]
[1730573029319,0.42707096,69428.0,69427.0,0.16423322]
[1730573030048,0.426747,69428.0,69427.0,0.16423322]
[1730573030322,0.426747,69428.0,69427.0,0.25025284]
[1730573030504,0.42707096,69428.0,69427.0,0.16423322]
[1730573030951,0.42707096,69428.0,69427.0,0.25025284]
[1730573031613,0.42707096,69428.0,69427.0,0.16423322]
[1730573033168,0.426747,69428.0,69427.0,0.16423322]
[1730573034670,0.426747,69428.0,69427.0,0.27175775]
[1730573034883,0.426747,69428.0,69427.0,0.16423322]
[1730573035455,0.426747,69428.0,69427.0,0.30268847]
[1730573035709,0.426747,69428.0,69427.0,0.30276219]
[1730573036559,0.426747,69428.0,69427.0,0.34765553]
[1730573040259,0.426747,69428.0,69427.0,0.34776988]
[1730573041696,0.426747,69428.0,69427.0,0.47695216]
[1730573041897,0.426747,69428.0,69427.0,0.34776988]
[1730573042505,0.426747,69428.0,69427.0,0.47695216]
[1730573047549,0.426747,69428.0,69427.0,0.34776988]
[1730573047757,0.426747,69428.0,69427.0,0.18881512]
[1730573047963,0.426747,69428.0,69427.0,0.34791462]
[1730573049093,0.426747,69428.0,69427.0,0.66946014]
[1730573049278,0.426747,69428.0,69427.0,0.54491462]
[1730573049476,0.426747,69428.0,69427.0,0.89095402]
[1730573049905,0.426747,69428.0,69427.0,0.70003462]
[1730573051776,0.426747,69428.0,69427.0,0.89085056]
[1730573052236,0.426747,69428.0,69427.0,0.70003462]
[1730573052242,0.426747,69428.0,69427.0,0.71721298]
[1730573052409,0.426747,69428.0,69427.0,0.72494318]
[1730573052629,0.426747,69428.0,69427.0,0.72294318]
[1730573053513,0.426747,69428.0,69427.0,0.80414318]
[1730573055056,0.426747,69428.0,69427.0,0.80614318]
[1730573055209,0.426747,69428.0,69427.0,0.81081922]
[1730573055414,0.426747,69428.0,69427.0,0.83962922]
[1730573056823,0.426747,69428.0,69427.0,0.8394616]
[1730573060963,0.426747,69428.0,69427.0,0.8374616]
[1730573061958,0.426747,69428.0,69427.0,0.8394616]
[1730573062443,0.426747,69428.0,69427.0,0.8374616]
[1730573062611,0.426747,69428.0,69427.0,0.7454616]
[1730573063066,0.426747,69428.0,69427.0,0.6642616]
[1730573063367,0.426747,69428.0,69427.0,0.67072645]
[1730573063597,0.426747,69428.0,69427.0,0.4803316]
[1730573064236,0.523147,69428.0,69427.0,0.4573316]
[1730573064661,0.523147,69428.0,69427.0,0.5773176]
[1730573065381,0.523147,69428.0,69427.0,0.45265556]
[1730573065775,0.523147,69428.0,69427.0,0.34765556]
[1730573066197,0.523147,69428.0,69427.0,0.30276222]
[1730573066841,0.523147,69428.0,69427.0,0.16430697]
[1730573067256,0.602747,69428.0,69427.0,0.26430697]
[1730573067763,0.602747,69428.0,69427.0,0.37180781]
[1730573068160,0.602747,69428.0,69427.0,0.36748328]
[1730573069881,0.602747,69428.0,69427.0,0.37183049]
[1730573070299,0.602747,69428.0,69427.0,0.37183391]
[1730573070645,0.602747,69428.0,69427.0,0.26432965]
[1730573071270,0.602747,69428.0,69427.0,0.37183554]
[1730573072743,0.602747,69428.0,69427.0,0.26432965]
[1730573073093,0.602747,69428.0,69427.0,0.35034514]
[1730573080638,0.602747,69428.0,69427.0,0.10548921]
[1730573088215,0.602747,69428.0,69427.0,0.10764852]
[1730573091015,0.60307096,69428.0,69427.0,0.10764852]
[1730573095748,0.60307096,69428.0,69427.0,0.00764852]
[1730573096174,0.61656353,69428.0,69427.0,0.00764852]
[1730573099009,0.61656306,69428.0,69427.0,0.00764852]
[1730573099393,0.60307096,69428.0,69427.0,0.00764852]
[1730573099619,0.61656306,69428.0,69427.0,0.00764852]
[1730573103502,0.61656306,69428.0,69427.0,0.10764852]
[1730573105347,0.61656242,69428.0,69427.0,0.10764852]
[1730573105658,0.61656242,69428.0,69427.0,0.1506392]
[1730573105816,0.61656242,69428.0,69427.0,0.17213455]
[1730573105817,0.53696242,69428.0,69427.0,0.17213455]
[1730573105989,0.52347096,69428.0,69427.0,0.33088352]
[1730573106338,0.52347096,69428.0,69427.0,0.17213455]
[1730573106456,0.52347096,69428.0,69427.0,0.26639769]
[1730573107681,0.52347096,69428.0,69427.0,0.35237906]
[1730573108043,0.52347096,69428.0,69427.0,0.35021975]
[1730573108619,0.52347096,69428.0,69427.0,0.26423838]
[1730573109245,0.52347096,69428.0,69427.0,0.2643801]
[1730573109675,0.52347096,69428.0,69427.0,0.37198875]
[1730573109888,0.523147,69428.0,69427.0,0.37198875]
[1730573110139,0.52347096,69428.0,69427.0,0.37198875]
[1730573110550,0.52347096,69428.0,69427.0,0.2643801]
[1730573110993,0.523147,69428.0,69427.0,0.2643801]
[1730573111219,0.523147,69428.0,69427.0,0.30926516]
[1730573111453,0.523147,69428.0,69427.0,0.2643801]
[1730573111454,0.42707096,69428.0,69427.0,0.2643801]
[1730573112299,0.426747,69428.0,69427.0,0.2643801]
[1730573112555,0.42707096,69428.0,69427.0,0.2643801]
[1730573113583,0.51767096,69428.0,69427.0,0.2643801]
[1730573113779,0.59817096,69428.0,69427.0,0.26452528]
[1730573115105,0.59817096,69428.0,69427.0,0.16452528]
[1730573115579,0.61166171,69428.0,69427.0,0.16452528]
[1730573116038,0.59817096,69428.0,69427.0,0.16452528]
[1730573116346,0.61166183,69428.0,69427.0,0.16452528]
[1730573117408,0.61166183,69428.0,69427.0,0.16017807]
[1730573118533,0.61166183,69428.0,69427.0,0.10887076]
[1730573118758,0.61166183,69428.0,69427.0,0.16017807]
[1730573123278,0.61166161,69428.0,69427.0,0.16017807]
[1730573127043,0.6116619,69428.0,69427.0,0.16017807]
[1730573129185,0.60792278,69428.0,69427.0,0.16017807]
[1730573130303,0.60792278,69428.0,69427.0,0.10887442]
[1730573130556,0.60792278,69428.0,69427.0,0.26791049]
[1730573130895,0.60792278,69428.0,69427.0,0.16017807]
[1730573130896,0.62950917,69428.0,69427.0,0.16017807]
[1730573130998,0.62950917,69428.0,69427.0,0.08733666]
[1730573131262,0.62950917,69428.0,69427.0,0.04424582]
[1730573131690,0.62950917,69428.0,69427.0,0.001142]
[1730573131903,0.62950917,69428.0,69427.0,0.04424079]
[1730573132127,0.62950917,69428.0,69427.0,0.04424093]
[1730573132640,0.62950917,69428.0,69427.0,0.001142]
[1730573134641,0.62949453,69428.0,69427.0,0.001142]
[1730573134875,0.59443184,69428.0,69427.0,0.001142]
[1730573135250,0.62949159,69428.0,69427.0,0.001142]
[1730573138596,0.62948387,69428.0,69427.0,0.001142]
[1730573146122,0.62948855,69428.0,69427.0,0.001142]
[1730573146360,0.59443184,69428.0,69427.0,0.001142]
[1730573146652,0.62948884,69428.0,69427.0,0.001142]
[1730573154127,0.62949482,69428.0,69427.0,0.001142]
[1730573158668,0.62951075,69428.0,69427.0,0.001142]
[1730573161715,0.62952882,69428.0,69427.0,0.001142]
[1730573165198,0.59443184,69428.0,69427.0,0.001142]
[1730573165201,0.629528,69428.0,69427.0,0.001142]
[1730573166263,0.634528,69428.0,69427.0,0.001142]
[1730573167434,0.77798325,69428.0,69427.0,0.001142]
[1730573167900,0.98859963,69428.0,69427.0,0.001142]
[1730573168092,0.99059963,69428.0,69427.0,0.001142]
[1730573169139,0.99059109,69428.0,69427.0,0.001142]
[1730573169152,0.96899879,69428.0,69427.0,0.001142]
[1730573169493,0.9905913,69428.0,69427.0,0.001142]
[1730573169914,0.9885913,69428.0,69427.0,0.001142]
[1730573170351,0.9905913,69428.0,69427.0,0.001142]
[1730573171919,0.95550347,69428.0,69427.0,0.001142]
[1730573172202,0.99055577,69428.0,69427.0,0.001142]
[1730573172814,1.01355577,69428.0,69427.0,0.001142]
[1730573179663,1.12334915,69428.0,69427.0,0.001142]
[1730573180388,1.08829685,69428.0,69427.0,0.001142]
[1730573180713,1.12330895,69428.0,69427.0,0.001142]
[1730573181021,1.12330919,69428.0,69427.0,0.001142]
[1730573181690,1.12330919,69428.0,69420.0,0.21870508]
[1730573181691,0.42535134,69421.0,69420.0,0.21870508]
[1730573181874,1.02100581,69421.0,69420.0,0.21870508]
[1730573182156,1.02100581,69421.0,69419.0,0.001642]
[1730573182157,0.31555896,69420.0,69419.0,0.001642]
[1730573182271,0.46748049,69420.0,69419.0,0.001642]
[1730573182499,0.91121343,69420.0,69419.0,0.001642]
[1730573187734,0.91118046,69420.0,69419.0,0.001642]
[1730573188397,1.04694012,69420.0,69419.0,0.001642]
[1730573191734,0.87620109,69420.0,69419.0,0.001642]
[1730573191752,0.91117728,69420.0,69419.0,0.001642]
[1730573197270,0.91120723,69420.0,69419.0,0.001642]
[1730573199690,0.89363258,69420.0,69419.0,0.001642]
[1730573201405,0.89349123,69420.0,69419.0,0.001642]
[1730573201855,0.85848509,69420.0,69419.0,0.001642]
[1730573202242,0.89351568,69420.0,69419.0,0.001642]
[1730573210390,0.71577272,69420.0,69419.0,0.001642]
[1730573212419,0.59567272,69420.0,69419.0,0.001642]
[1730573213090,0.59567272,69420.0,69419.0,0.077742]
[1730573213345,0.61816564,69420.0,69419.0,0.169442]
[1730573213359,0.59567272,69420.0,69419.0,0.169442]
[1730573214253,0.59567272,69420.0,69419.0,0.077742]